fUST/lending_fUST_20250220
["ID","MTS","AMOUNT","RATE_DAILY","PERIOD"]
[353738258,1740001845999,-1421.72,0.00013863,2]
[353738259,1740001846009,-1040.02,0.00013863,2]
[353738260,1740001846019,-2658.35,0.00013863,2]
[353738261,1740001846029,-6465.72,0.00013863,2]
[353738262,1740001846049,-645.29394927,0.00013863,2]
[353738263,1740001846061,-1289.78,0.00013863,2]
[353738264,1740001846071,-500.0,0.00013863,2]
[353738265,1740001846082,-626.46,0.00013863,2]
[353738266,1740001846091,-500.0,0.00013863,2]
[353738267,1740001846102,-500.0,0.00013863,2]
[353738268,1740001846112,-420.0,0.00013922,2]
[353738269,1740001846124,-500.0,0.00013945,2]
[353738271,1740001846135,-500.0,0.00013945,2]
[353738272,1740001846144,-500.0,0.00013945,2]
[353738273,1740001846154,-500.0,0.00013945,2]
[353738274,1740001846164,-500.0,0.00013945,2]
[353738275,1740001846175,-500.0,0.00013945,2]
[353738276,1740001846186,-500.0,0.00013945,2]
[353738277,1740001846197,-500.0,0.00013945,2]
[353738278,1740001846207,-500.0,0.00013945,2]
[353738279,1740001846216,-500.0,0.00013945,2]
[353738280,1740001846226,-500.0,0.00013945,2]
[353738281,1740001846236,-500.0,0.00013945,2]
[353738282,1740001846246,-500.0,0.00013945,2]
[353738283,1740001846257,-500.0,0.00013945,2]
[353738284,1740001846266,-500.0,0.00013945,2]
[353738285,1740001846276,-765.72,0.00013945,2]
[353738286,1740001846286,-500.0,0.00013945,2]
[353738287,1740001846296,-11164.93,0.00013945,2]
[353738288,1740001846306,-500.0,0.00013945,2]
[353738289,1740001846316,-549.37,0.00013945,2]
[353738290,1740001846326,-500.0,0.00013945,2]
[353738291,1740001846336,-500.0,0.00013945,2]
[353738292,1740001846346,-500.0,0.00013945,2]
[353738293,1740001846356,-500.0,0.00013945,2]
[353738294,1740001846365,-500.0,0.00013945,2]
[353738296,1740001846375,-609.21,0.00013945,2]
[353738298,1740001846386,-574.21,0.00013945,2]
[353738299,1740001846395,-4467.89,0.00013945,2]
[353738300,1740001846405,-500.0,0.00013945,2]
[353738301,1740001846415,-811.0,0.00013945,2]
[353738302,1740001846424,-1386.06,0.00013945,2]
[353738303,1740001846434,-500.0,0.00013945,2]
[353738304,1740001846444,-500.0,0.00013945,2]
[353738305,1740001846453,-1029.05,0.00013945,2]
[353738306,1740001846463,-640.29,0.00013945,2]
[353738307,1740001846472,-500.0,0.00013945,2]
[353738308,1740001846482,-547.17,0.00013945,2]
[353738309,1740001846491,-500.0,0.00013945,2]
[353738311,1740001846502,-500.0,0.00013945,2]
[353738312,1740001846512,-500.0,0.00013945,2]
[353738313,1740001846521,-938.65,0.00013945,2]
[353738314,1740001846531,-568.72,0.00013945,2]
[353738315,1740001846541,-553.57,0.00013945,2]
[353738316,1740001846551,-550.04,0.00013945,2]
[353738317,1740001846560,-500.0,0.00013945,2]
[353738318,1740001846570,-500.0,0.00013945,2]
[353738319,1740001846580,-500.0,0.00013945,2]
[353738320,1740001846590,-500.0,0.00013945,2]
[353738321,1740001846600,-500.0,0.00013945,2]
[353738322,1740001846610,-500.0,0.00013945,2]
[353738324,1740001846620,-500.0,0.00013945,2]
[353738326,1740001846630,-522.0,0.00013945,2]
[353738328,1740001846639,-1421.72,0.00013945,2]
[353738330,1740001846650,-1040.02,0.00013945,2]
[353738332,1740001846661,-2658.35,0.00013945,2]
[353738334,1740001846671,-6465.72,0.00013945,2]
[353738336,1740001846681,-1289.78,0.00013945,2]
[353738338,1740001846691,-500.0,0.00013945,2]
[353738339,1740001846701,-626.46,0.00013945,2]
[353738340,1740001846711,-500.0,0.00013945,2]
[353738341,1740001846720,-500.0,0.00013945,2]
[353738342,1740001846730,-500.0,0.00014027,2]
[353738343,1740001846739,-500.0,0.00014027,2]
[353738344,1740001846749,-500.0,0.00014027,2]
[353738345,1740001846759,-500.0,0.00014027,2]
[353738346,1740001846768,-500.0,0.00014027,2]
[353738347,1740001846777,-500.0,0.00014027,2]
[353738348,1740001846787,-500.0,0.00014027,2]
[353738349,1740001846797,-500.0,0.00014027,2]
[353738350,1740001846806,-500.0,0.00014027,2]
[353738351,1740001846816,-500.0,0.00014027,2]
[353738352,1740001846825,-500.0,0.00014027,2]
[353738353,1740001846835,-500.0,0.00014027,2]
[353738354,1740001846845,-500.0,0.00014027,2]
[353738355,1740001846855,-500.0,0.00014027,2]
[353738356,1740001846864,-500.0,0.00014027,2]
[353738357,1740001846874,-765.72,0.00014027,2]
[353738358,1740001846884,-500.0,0.00014027,2]
[353738359,1740001846893,-11164.93,0.00014027,2]
[353738360,1740001846903,-500.0,0.00014027,2]
[353738361,1740001846913,-549.37,0.00014027,2]
[353738362,1740001846922,-500.0,0.00014027,2]
[353738363,1740001846931,-500.0,0.00014027,2]
[353738364,1740001846941,-500.0,0.00014027,2]
[353738365,1740001846950,-500.0,0.00014027,2]
[353738366,1740001846960,-500.0,0.00014027,2]
[353738367,1740001846969,-609.21,0.00014027,2]
[353738368,1740001846979,-574.21,0.00014027,2]
[353738369,1740001846989,-4467.89,0.00014027,2]
[353738370,1740001846998,-500.0,0.00014027,2]
[353738371,1740001847008,-811.0,0.00014027,2]
[353738372,1740001847019,-1386.06,0.00014027,2]
[353738373,1740001847028,-500.0,0.00014027,2]
[353738374,1740001847039,-500.0,0.00014027,2]
[353738375,1740001847050,-1029.05,0.00014027,2]
[353738376,1740001847060,-640.29,0.00014027,2]
[353738377,1740001847070,-500.0,0.00014027,2]
[353738378,1740001847080,-500.0,0.00014027,2]
[353738379,1740001847091,-500.0,0.00014027,2]
[353738380,1740001847100,-500.0,0.00014027,2]
[353738381,1740001847109,-938.65,0.00014027,2]
[353738382,1740001847120,-568.72,0.00014027,2]
[353738383,1740001847130,-553.57,0.00014027,2]
[353738384,1740001847139,-550.04,0.00014027,2]
[353738385,1740001847149,-500.0,0.00014027,2]
[353738386,1740001847159,-500.0,0.00014027,2]
[353738387,1740001847168,-500.0,0.00014027,2]
[353738388,1740001847178,-500.0,0.00014027,2]
[353738389,1740001847187,-500.0,0.00014027,2]
[353738390,1740001847196,-500.0,0.00014027,2]
[353738391,1740001847206,-522.0,0.00014027,2]
[353738392,1740001847216,-1421.72,0.00014027,2]
[353738393,1740001847227,-1040.02,0.00014027,2]
[353738394,1740001847237,-2658.35,0.00014027,2]
[353738395,1740001847250,-6465.72,0.00014027,2]
[353738396,1740001847260,-1289.78,0.00014027,2]
[353738397,1740001847270,-500.0,0.00014027,2]
[353738398,1740001847282,-626.46,0.00014027,2]
[353738399,1740001847292,-500.0,0.00014027,2]
[353738400,1740001847301,-500.0,0.00014027,2]
[353738401,1740001847311,-500.0,0.00014109,2]
[353738402,1740001847321,-500.0,0.00014109,2]
[353738403,1740001847330,-446.50592814,0.00014109,2]
[353738404,1740001847340,-500.0,0.00014109,2]
[353738405,1740001847349,-500.0,0.00014109,2]
[353738406,1740001847359,-500.0,0.00014109,2]
[353738407,1740001847369,-500.0,0.00014109,2]
[353738408,1740001847378,-500.0,0.00014109,2]
[353738409,1740001847388,-500.0,0.00014109,2]
[353738410,1740001847397,-647.51481865,0.00014109,2]
[353738411,1740001847407,-500.0,0.00014109,2]
[353738412,1740001847416,-500.0,0.00014109,2]
[353738413,1740001847426,-500.0,0.00014109,2]
[353738414,1740001847435,-500.0,0.00014109,2]
[353738415,1740001847445,-500.0,0.00014109,2]
[353738416,1740001847455,-765.72,0.00014109,2]
[353738417,1740001847465,-500.0,0.00014109,2]
[353738418,1740001847475,-11164.93,0.00014109,2]
[353738419,1740001847484,-500.0,0.00014109,2]
[353738420,1740001847494,-549.37,0.00014109,2]
[353738421,1740001847504,-500.0,0.00014109,2]
[353738422,1740001847514,-500.0,0.00014109,2]
[353738423,1740001847524,-500.0,0.00014109,2]
[353738424,1740001847533,-500.0,0.00014109,2]
[353738425,1740001847543,-500.0,0.00014109,2]
[353738426,1740001847553,-609.21,0.00014109,2]
[353738427,1740001847563,-574.21,0.00014109,2]
[353738428,1740001847576,-4467.89,0.00014109,2]
[353738429,1740001847586,-500.0,0.00014109,2]
[353738430,1740001847596,-811.0,0.00014109,2]
[353738431,1740001847606,-1386.06,0.00014109,2]
[353738432,1740001847618,-500.0,0.00014109,2]
[353738433,1740001847628,-500.0,0.00014109,2]
[353738434,1740001847638,-1029.05,0.00014109,2]
[353738435,1740001847648,-640.29,0.00014109,2]
[353738436,1740001847658,-500.0,0.00014109,2]
[353738437,1740001847667,-500.0,0.00014109,2]
[353738438,1740001847676,-500.0,0.00014109,2]
[353738439,1740001847686,-500.0,0.00014109,2]
[353738440,1740001847695,-938.65,0.00014109,2]
[353738441,1740001847706,-568.72,0.00014109,2]
[353738442,1740001847715,-553.57,0.00014109,2]
[353738443,1740001847726,-550.04,0.00014109,2]
[353738444,1740001847736,-500.0,0.00014109,2]
[353738445,1740001847746,-500.0,0.00014109,2]
[353738446,1740001847756,-500.0,0.00014109,2]
[353738447,1740001847765,-500.0,0.00014109,2]
[353738448,1740001847775,-500.0,0.00014109,2]
[353738449,1740001847785,-282.31763371,0.00014109,2]
[353738450,1740001847794,-522.0,0.00014109,2]
[353738451,1740001847805,-1421.72,0.00014109,2]
[353738452,1740001847815,-1040.02,0.00014109,2]
[353738453,1740001847825,-2658.35,0.00014109,2]
[353738454,1740001847835,-6465.72,0.00014109,2]
[353738455,1740001847844,-1289.78,0.00014109,2]
[353738456,1740001847854,-500.0,0.00014109,2]
[353738457,1740001847865,-626.46,0.00014109,2]
[353738458,1740001847875,-500.0,0.00014109,2]
[353738459,1740001847884,-500.0,0.00014109,2]
[353738460,1740001847894,-600.0,0.00014164,2]
[353738461,1740001847904,-500.0,0.00014191,2]
[353738462,1740001847913,-500.0,0.00014191,2]
[353738463,1740001847923,-500.0,0.00014191,2]
[353738464,1740001847933,-500.0,0.00014191,2]
[353738465,1740001847943,-500.0,0.00014191,2]
[353738466,1740001847953,-500.0,0.00014191,2]
[353738467,1740001847963,-500.0,0.00014191,2]
[353738468,1740001847973,-500.0,0.00014191,2]
[353738469,1740001847982,-500.0,0.00014191,2]
[353738470,1740001847993,-500.0,0.00014191,2]
[353738471,1740001848004,-500.0,0.00014191,2]
[353738472,1740001848013,-500.0,0.00014191,2]
[353738473,1740001848023,-500.0,0.00014191,2]
[353738474,1740001848032,-765.72,0.00014191,2]
[353738475,1740001848046,-500.0,0.00014191,2]
[353738476,1740001848057,-500.0,0.00014191,2]
[353738477,1740001848067,-549.37,0.00014191,2]
[353738478,1740001848077,-500.0,0.00014191,2]
[353738479,1740001848088,-500.0,0.00014191,2]
[353738480,1740001848098,-500.0,0.00014191,2]
[353738481,1740001848108,-191.39475227,0.00014191,2]
[353738482,1740001848120,-609.21,0.00014191,2]
[353738483,1740001848130,-574.21,0.00014191,2]
[353738484,1740001848139,-4467.89,0.00014191,2]
[353738485,1740001848149,-500.0,0.00014191,2]
[353738486,1740001848159,-811.0,0.00014191,2]
[353738487,1740001848169,-1386.06,0.00014191,2]
[353738488,1740001848179,-500.0,0.00014191,2]
[353738489,1740001848190,-500.0,0.00014191,2]
[353738490,1740001848199,-1029.05,0.00014191,2]
[353738491,1740001848209,-640.29,0.00014191,2]
[353738492,1740001848219,-500.0,0.00014191,2]
[353738493,1740001848228,-500.0,0.00014191,2]
[353738494,1740001848238,-500.0,0.00014191,2]
[353738495,1740001848249,-500.0,0.00014191,2]
[353738496,1740001848259,-938.65,0.00014191,2]
[353738497,1740001848269,-568.72,0.00014191,2]
[353738498,1740001848279,-553.57,0.00014191,2]
[353738499,1740001848437,-550.04,0.00014191,2]
[353738500,1740001848448,-500.0,0.00014191,2]
[353738501,1740001848458,-500.0,0.00014191,2]
[353738502,1740001848468,-500.0,0.00014191,2]
[353738503,1740001848478,-500.0,0.00014191,2]
[353738504,1740001848488,-522.0,0.00014191,2]
[353738505,1740001848498,-1421.72,0.00014191,2]
[353738506,1740001848508,-1040.02,0.00014191,2]
[353738507,1740001848519,-2658.35,0.00014191,2]
[353738508,1740001848528,-6465.72,0.00014191,2]
[353738509,1740001848538,-1289.78,0.00014191,2]
[353738510,1740001848548,-500.0,0.00014191,2]
[353738511,1740001848557,-626.46,0.00014191,2]
[353738512,1740001848568,-391.20026402,0.00014191,2]
[353738513,1740001848577,-500.0,0.00014191,2]
[353738514,1740001848587,-500.0,0.00014221,2]
[353738515,1740001848598,-150.76035698,0.00014221,2]
[353738516,1740001848607,-500.0,0.00014247,2]
[353738517,1740001848616,-500.0,0.00014273,2]
[353738518,1740001848626,-500.0,0.00014273,2]
[353738519,1740001848636,-500.0,0.00014273,2]
[353738520,1740001848646,-500.0,0.00014273,2]
[353738521,1740001848655,-500.0,0.00014273,2]
[353738522,1740001848666,-500.0,0.00014273,2]
[353738523,1740001848675,-500.0,0.00014273,2]
[353738524,1740001848684,-500.0,0.00014273,2]
[353738525,1740001848694,-500.0,0.00014273,2]
[353738526,1740001848703,-500.0,0.00014273,2]
[353738527,1740001848713,-500.0,0.00014273,2]
[353738528,1740001848723,-765.72,0.00014273,2]
[353738529,1740001848732,-500.0,0.00014273,2]
[353738530,1740001848742,-500.0,0.00014273,2]
[353738531,1740001848752,-549.37,0.00014273,2]
[353738532,1740001848761,-500.0,0.00014273,2]
[353738533,1740001848771,-500.0,0.00014273,2]
[353738534,1740001848781,-500.0,0.00014273,2]
[353738535,1740001848792,-609.21,0.00014273,2]
[353738536,1740001848803,-574.21,0.00014273,2]
[353738537,1740001848813,-4467.89,0.00014273,2]
[353738538,1740001848823,-500.0,0.00014273,2]
[353738539,1740001848833,-811.0,0.00014273,2]
[353738540,1740001848843,-1386.06,0.00014273,2]
[353738541,1740001848853,-500.0,0.00014273,2]
[353738542,1740001848863,-500.0,0.00014273,2]
[353738543,1740001848873,-1029.05,0.00014273,2]
[353738544,1740001848883,-640.29,0.00014273,2]
[353738545,1740001848892,-500.0,0.00014273,2]
[353738546,1740001848902,-500.0,0.00014273,2]
[353738547,1740001848912,-459.67384719,0.00014273,2]
[353738548,1740001848921,-500.0,0.00014273,2]
[353738549,1740001848931,-938.65,0.00014273,2]
[353738550,1740001848941,-568.72,0.00014273,2]
[353738551,1740001848951,-553.57,0.00014273,2]
[353738552,1740001848961,-550.04,0.00014273,2]
[353738553,1740001848971,-500.0,0.00014273,2]
[353738554,1740001848980,-500.0,0.00014273,2]
[353738555,1740001848989,-500.0,0.00014273,2]
[353738556,1740001849000,-522.0,0.00014273,2]
[353738557,1740001849009,-1421.72,0.00014273,2]
[353738558,1740001849019,-1040.02,0.00014273,2]
[353738559,1740001849029,-2658.35,0.00014273,2]
[353738560,1740001849040,-6465.72,0.00014273,2]
[353738561,1740001849050,-1289.78,0.00014273,2]
[353738562,1740001849060,-500.0,0.00014273,2]
[353738563,1740001849070,-626.46,0.00014273,2]
[353738564,1740001849081,-500.0,0.00014273,2]
[353738565,1740001849091,-562.66205564,0.00014356,2]
[353738566,1740001849100,-500.0,0.00014356,2]
[353738567,1740001849110,-500.0,0.00014356,2]
[353738568,1740001849120,-500.0,0.00014356,2]
[353738569,1740001849130,-500.0,0.00014356,2]
[353738570,1740001849140,-500.0,0.00014356,2]
[353738571,1740001849150,-500.0,0.00014356,2]
[353738572,1740001849160,-500.0,0.00014356,2]
[353738573,1740001849170,-500.0,0.00014356,2]
[353738574,1740001849180,-500.0,0.00014356,2]
[353738575,1740001849190,-348.2249384,0.00014356,2]
[353738576,1740001849200,-765.72,0.00014356,2]
[353738577,1740001849210,-500.0,0.00014356,2]
[353738578,1740001849219,-500.0,0.00014356,2]
[353738579,1740001849229,-549.37,0.00014356,2]
[353738580,1740001849238,-500.0,0.00014356,2]
[353738581,1740001849247,-500.0,0.00014356,2]
[353738582,1740001849257,-500.0,0.00014356,2]
[353738583,1740001849268,-609.21,0.00014356,2]
[353738584,1740001849278,-574.21,0.00014356,2]
[353738585,1740001849288,-4467.89,0.00014356,2]
[353738586,1740001849299,-500.0,0.00014356,2]
[353738587,1740001849309,-811.0,0.00014356,2]
[353738588,1740001849319,-1386.06,0.00014356,2]
[353738589,1740001849328,-500.0,0.00014356,2]
[353738590,1740001849338,-557.6,0.00014356,2]
[353738591,1740001849347,-1029.05,0.00014356,2]
[353738592,1740001849357,-640.29,0.00014356,2]
[353738593,1740001849367,-500.0,0.00014356,2]
[353738594,1740001849376,-500.0,0.00014356,2]
[353738595,1740001849385,-500.0,0.00014356,2]
[353738596,1740001849395,-938.65,0.00014356,2]
[353738597,1740001849405,-568.72,0.00014356,2]
[353738598,1740001849414,-553.57,0.00014356,2]
[353738599,1740001849424,-550.04,0.00014356,2]
[353738600,1740001849434,-500.0,0.00014356,2]
[353738601,1740001849443,-500.0,0.00014356,2]
[353738602,1740001849452,-253.64,0.00014356,2]
[353738603,1740001849462,-522.0,0.00014356,2]
[353738604,1740001849472,-1421.72,0.00014356,2]
[353738605,1740001849482,-1040.02,0.00014356,2]
[353738606,1740001849492,-2658.35,0.00014356,2]
[353738607,1740001849502,-6465.72,0.00014356,2]
[353738608,1740001849512,-1289.78,0.00014356,2]
[353738609,1740001849522,-500.0,0.00014356,2]
[353738610,1740001849532,-626.46,0.00014356,2]
[353738611,1740001849541,-500.0,0.00014356,2]
[353738612,1740001849551,-179.67658215,0.000144,2]
[353738613,1740001849560,-500.0,0.00014438,2]
[353738614,1740001849569,-500.0,0.00014438,2]
[353738615,1740001849579,-500.0,0.00014438,2]
[353738616,1740001849588,-417.6237776,0.00014438,2]
[353738617,1740001849599,-500.0,0.00014438,2]
[353738618,1740001849609,-500.0,0.00014438,2]
[353738619,1740001849619,-500.0,0.00014438,2]
[353738620,1740001849629,-500.0,0.00014438,2]
[353738621,1740001849638,-500.0,0.00014438,2]
[353738622,1740001849648,-765.72,0.00014438,2]
[353738623,1740001849657,-500.0,0.00014438,2]
[353738624,1740001849667,-500.0,0.00014438,2]
[353738625,1740001849677,-549.37,0.00014438,2]
[353738626,1740001849687,-500.0,0.00014438,2]
[353738627,1740001849697,-500.0,0.00014438,2]
[353738628,1740001849707,-500.0,0.00014438,2]
[353738629,1740001849717,-609.21,0.00014438,2]
[353738630,1740001849728,-574.21,0.00014438,2]
[353738631,1740001849737,-4467.89,0.00014438,2]
[353738632,1740001849746,-500.0,0.00014438,2]
[353738633,1740001849756,-811.0,0.00014438,2]
[353738634,1740001849766,-1386.06,0.00014438,2]
[353738635,1740001849776,-500.0,0.00014438,2]
[353738636,1740001849785,-1029.05,0.00014438,2]
[353738637,1740001849795,-640.29,0.00014438,2]
[353738638,1740001849804,-500.0,0.00014438,2]
[353738639,1740001849813,-500.0,0.00014438,2]
[353738640,1740001849822,-500.0,0.00014438,2]
[353738641,1740001849832,-938.65,0.00014438,2]
[353738642,1740001849842,-568.72,0.00014438,2]
[353738643,1740001849851,-553.57,0.00014438,2]
[353738644,1740001849860,-550.04,0.00014438,2]
[353738645,1740001849871,-500.0,0.00014438,2]
[353738646,1740001849880,-500.0,0.00014438,2]
[353738647,1740001849890,-522.0,0.00014438,2]
[353738648,1740001849900,-1421.72,0.00014438,2]
[353738649,1740001849909,-1040.02,0.00014438,2]
[353738650,1740001849919,-2658.35,0.00014438,2]
[353738651,1740001849928,-6465.72,0.00014438,2]
[353738652,1740001849938,-1289.78,0.00014438,2]
[353738653,1740001849947,-500.0,0.00014438,2]
[353738654,1740001849957,-626.46,0.00014438,2]
[353738655,1740001849967,-7438.69753278,0.00014516,2]
[353738656,1740001849976,-608.46280652,0.0001452,2]
[353738657,1740001849986,-500.0,0.0001452,2]
[353738658,1740001849996,-500.0,0.0001452,2]
[353738659,1740001850006,-500.0,0.0001452,2]
[353738660,1740001850016,-500.0,0.0001452,2]
[353738661,1740001850026,-444.93,0.0001452,2]
[353738662,1740001850037,-500.0,0.0001452,2]
[353738663,1740001850049,-500.0,0.0001452,2]
[353738664,1740001850058,-765.72,0.0001452,2]
[353738665,1740001850068,-500.0,0.0001452,2]
[353738666,1740001850078,-500.0,0.0001452,2]
[353738667,1740001850088,-549.37,0.0001452,2]
[353738668,1740001850098,-500.0,0.0001452,2]
[353738669,1740001850109,-500.0,0.0001452,2]
[353738670,1740001850125,-500.0,0.0001452,2]
[353738671,1740001850134,-609.21,0.0001452,2]
[353738672,1740001850145,-574.21,0.0001452,2]
[353738673,1740001850155,-4467.89,0.0001452,2]
[353738674,1740001850165,-500.0,0.0001452,2]
[353738675,1740001850175,-811.0,0.0001452,2]
[353738676,1740001850185,-1386.06,0.0001452,2]
[353738677,1740001850194,-500.0,0.0001452,2]
[353738678,1740001850204,-1029.05,0.0001452,2]
[353738679,1740001850214,-640.29,0.0001452,2]
[353738680,1740001850223,-302.26999994,0.0001452,2]
[353738681,1740001850232,-500.0,0.0001452,2]
[353738682,1740001850242,-500.0,0.0001452,2]
[353738683,1740001850251,-938.65,0.0001452,2]
[353738684,1740001850261,-568.72,0.0001452,2]
[353738685,1740001850270,-553.57,0.0001452,2]
[353738686,1740001850279,-550.04,0.0001452,2]
[353738687,1740001850289,-319.25468152,0.0001452,2]
[353738688,1740001850299,-500.0,0.0001452,2]
[353738689,1740001850309,-522.0,0.0001452,2]
[353738690,1740001850319,-1421.72,0.0001452,2]
[353738691,1740001850329,-1040.02,0.0001452,2]
[353738692,1740001850339,-2658.35,0.0001452,2]
[353738693,1740001850349,-6465.72,0.0001452,2]
[353738694,1740001850359,-1289.78,0.0001452,2]
[353738695,1740001850369,-500.0,0.0001452,2]
[353738696,1740001850378,-626.46,0.0001452,2]
[353738697,1740001850388,-500.0,0.00014602,2]
[353738698,1740001850398,-500.0,0.00014602,2]
[353738699,1740001850408,-500.0,0.00014602,2]
[353738700,1740001850418,-500.0,0.00014602,2]
[353738701,1740001850428,-500.0,0.00014602,2]
[353738702,1740001850437,-525.84,0.00014602,2]
[353738703,1740001850447,-765.72,0.00014602,2]
[353738704,1740001850457,-500.0,0.00014602,2]
[353738705,1740001850466,-500.0,0.00014602,2]
[353738706,1740001850475,-549.37,0.00014602,2]
[353738707,1740001850485,-500.0,0.00014602,2]
[353738708,1740001850494,-500.0,0.00014602,2]
[353738709,1740001850504,-500.0,0.00014602,2]
[353738710,1740001850514,-609.21,0.00014602,2]
[353738711,1740001850524,-574.21,0.00014602,2]
[353738712,1740001850534,-4467.89,0.00014602,2]
[353738713,1740001850544,-500.0,0.00014602,2]
[353738714,1740001850553,-811.0,0.00014602,2]
[353738715,1740001850563,-1386.06,0.00014602,2]
[353738716,1740001850573,-500.0,0.00014602,2]
[353738717,1740001850583,-1029.05,0.00014602,2]
[353738718,1740001850592,-640.29,0.00014602,2]
[353738719,1740001850603,-500.0,0.00014602,2]
[353738720,1740001850612,-500.0,0.00014602,2]
[353738721,1740001850622,-938.65,0.00014602,2]
[353738722,1740001850631,-568.72,0.00014602,2]
[353738723,1740001850641,-553.57,0.00014602,2]
[353738724,1740001850651,-550.04,0.00014602,2]
[353738725,1740001850661,-500.0,0.00014602,2]
[353738726,1740001850671,-522.0,0.00014602,2]
[353738727,1740001850681,-1421.72,0.00014602,2]
[353738728,1740001850690,-1040.02,0.00014602,2]
[353738729,1740001850700,-2658.35,0.00014602,2]
[353738730,1740001850710,-6465.72,0.00014602,2]
[353738731,1740001850720,-1289.78,0.00014602,2]
[353738732,1740001850730,-500.0,0.00014602,2]
[353738733,1740001850739,-626.46,0.00014602,2]
[353738734,1740001850749,-500.0,0.00014684,2]
[353738735,1740001850759,-372.73,0.00014684,2]
[353738736,1740001850767,-500.0,0.00014684,2]
[353738737,1740001850778,-298.36,0.00014684,2]
[353738738,1740001850788,-765.72,0.00014684,2]
[353738739,1740001850798,-500.0,0.00014684,2]
[353738740,1740001850808,-500.0,0.00014684,2]
[353738741,1740001850818,-549.37,0.00014684,2]
[353738742,1740001850828,-500.0,0.00014684,2]
[353738743,1740001850838,-500.0,0.00014684,2]
[353738744,1740001850849,-317.0,0.00014684,2]
[353738745,1740001850859,-609.21,0.00014684,2]
[353738746,1740001850869,-574.21,0.00014684,2]
[353738747,1740001850879,-4467.89,0.00014684,2]
[353738748,1740001850888,-500.0,0.00014684,2]
[353738749,1740001850898,-811.0,0.00014684,2]
[353738750,1740001850907,-1386.06,0.00014684,2]
[353738751,1740001850917,-500.0,0.00014684,2]
[353738752,1740001850927,-1029.05,0.00014684,2]
[353738753,1740001850936,-640.29,0.00014684,2]
[353738754,1740001850947,-500.0,0.00014684,2]
[353738755,1740001850956,-500.0,0.00014684,2]
[353738756,1740001850965,-938.65,0.00014684,2]
[353738757,1740001850974,-568.72,0.00014684,2]
[353738758,1740001850984,-553.57,0.00014684,2]
[353738759,1740001850992,-550.04,0.00014684,2]
[353738760,1740001851002,-500.0,0.00014684,2]
[353738761,1740001851011,-522.0,0.00014684,2]
[353738762,1740001851021,-1421.72,0.00014684,2]
[353738763,1740001851031,-1040.02,0.00014684,2]
[353738764,1740001851044,-2658.35,0.00014684,2]
[353738765,1740001851054,-6465.72,0.00014684,2]
[353738766,1740001851063,-1289.78,0.00014684,2]
[353738767,1740001851073,-500.0,0.00014684,2]
[353738768,1740001851083,-626.46,0.00014684,2]
[353738769,1740001851093,-151.0,0.000147,2]